fUST/lending_fUST_20251231
["ID","MTS","AMOUNT","RATE_DAILY","PERIOD"]
[400203064,1767195034689,-500.0,0.00013273,2]
[400203065,1767195034699,-381.16221649,0.00013273,2]
[400203066,1767195034709,-544.63270575,0.00013273,2]
[400203067,1767195034719,-500.0,0.00013273,2]
[400203068,1767195034729,-500.0,0.00013273,2]
[400203069,1767195034739,-500.0,0.00013273,2]
[400203070,1767195034749,-500.0,0.00013273,2]
[400203071,1767195034760,-500.0,0.00013273,2]
[400203072,1767195034770,-500.0,0.00013273,2]
[400203073,1767195034779,-500.0,0.00013273,2]
[400203074,1767195034789,-500.0,0.00013273,2]
[400203075,1767195034798,-500.0,0.00013273,2]
[400203076,1767195034808,-500.0,0.00013273,2]
[400203077,1767195034817,-500.0,0.00013273,2]
[400203078,1767195034827,-602.47879957,0.00013273,2]
[400203079,1767195034837,-500.0,0.00013273,2]
[400203080,1767195034846,-500.0,0.00013273,2]
[400203081,1767195034855,-500.0,0.00013273,2]
[400203082,1767195034865,-500.0,0.00013273,2]
[400203083,1767195034875,-499.96763801,0.00013273,2]
[400203084,1767195034884,-500.0,0.00013273,2]
[400203085,1767195034894,-500.0,0.00013273,2]
[400203086,1767195034904,-415.16,0.00013342,2]
[400203087,1767195034913,-9960.45703834,0.0001354,2]
[400203088,1767195034923,-1675.90936191,0.00013599,2]
[400203089,1767195034933,-300.0,0.00013673,2]
[400203090,1767195034943,-500.0,0.00013698,2]
[400203091,1767195034955,-500.0,0.00013698,2]
[400203092,1767195034965,-503.20098078,0.00013698,2]
[400203093,1767195034974,-500.0,0.00013698,2]
[400203094,1767195034983,-500.0,0.00013698,2]
[400203095,1767195034994,-500.0,0.00013698,2]
[400203096,1767195035004,-500.0,0.00013698,2]
[400203097,1767195035013,-500.0,0.00013698,2]
[400203098,1767195035024,-500.0,0.00013698,2]
[400203099,1767195035034,-500.0,0.00013698,2]
[400203100,1767195035044,-500.0,0.00013698,2]
[400203101,1767195035053,-500.0,0.00013698,2]
[400203102,1767195035063,-500.0,0.00013698,2]
[400203103,1767195035073,-429.40593815,0.00013698,2]
[400203104,1767195035083,-3496.67,0.00013698,2]
[400203105,1767195035092,-3496.67,0.00013698,2]
[400203106,1767195035102,-3496.67,0.00013698,2]
[400203107,1767195035111,-3496.67,0.00013698,2]
[400203108,1767195035122,-3496.67,0.00013698,2]
[400203109,1767195035131,-3496.67,0.00013698,2]
[400203110,1767195035141,-3496.67,0.00013698,2]
[400203111,1767195035151,-3496.67,0.00013698,2]
[400203112,1767195035160,-3496.67,0.00013698,2]
[400203113,1767195035170,-3496.67,0.00013698,2]
[400203114,1767195035180,-3496.67,0.00013698,2]
[400203115,1767195035189,-3496.67,0.00013698,2]
[400203116,1767195035199,-3496.67,0.00013698,2]
[400203117,1767195035208,-3496.67,0.00013698,2]
[400203118,1767195035217,-3496.67,0.00013698,2]
[400203119,1767195035227,-3496.67,0.00013698,2]
[400203120,1767195035237,-3496.67,0.00013698,2]
[400203121,1767195035247,-3496.67,0.00013698,2]
[400203122,1767195035256,-3496.67,0.00013698,2]
[400203123,1767195035266,-3496.67,0.00013698,2]
[400203124,1767195035278,-3496.67,0.00013698,2]
[400203125,1767195035287,-3496.67,0.00013698,2]
[400203126,1767195035296,-3496.67,0.00013698,2]
[400203127,1767195035305,-3496.6955997,0.00013698,2]
[400203128,1767195035315,-500.0,0.00013698,2]
[400203129,1767195035324,-500.0,0.00013698,2]
[400203130,1767195035334,-500.0,0.00013698,2]
[400203131,1767195035343,-500.0,0.00013698,2]
[400203132,1767195035352,-500.0,0.00013698,2]
[400203133,1767195035362,-500.0,0.00013698,2]
[400203134,1767195035371,-500.0,0.00013698,2]
[400203135,1767195035381,-500.0,0.00013698,2]
[400203136,1767195035390,-500.0,0.00013698,2]
[400203137,1767195035399,-500.0,0.00013698,2]
[400203138,1767195035409,-458.86833984,0.00013698,2]
[400203139,1767195035419,-500.0,0.00013698,2]
[400203140,1767195035428,-568.43490835,0.00013698,2]
[400203141,1767195035438,-500.0,0.00013698,2]
[400203142,1767195035448,-500.0,0.00013698,2]
[400203143,1767195035458,-500.0,0.00013698,2]
[400203144,1767195035468,-500.0,0.00013698,2]
[400203145,1767195035478,-500.0,0.00013698,2]
[400203146,1767195035488,-500.0,0.00013698,2]
[400203147,1767195035498,-500.0,0.00013698,2]
[400203148,1767195035507,-500.0,0.00013698,2]
[400203149,1767195035516,-500.0,0.00013698,2]
[400203150,1767195035526,-319.44,0.00013698,2]
[400203151,1767195035536,-450.0,0.00013698,2]
[400203152,1767195035546,-2080.66,0.00013698,2]
[400203153,1767195035557,-2080.66,0.00013698,2]
[400203154,1767195035567,-2080.66,0.00013698,2]
[400203155,1767195035577,-2080.66,0.00013698,2]
[400203156,1767195035587,-2080.66,0.00013698,2]
[400203157,1767195035597,-2080.66,0.00013698,2]
[400203158,1767195035607,-2080.66,0.00013698,2]
[400203159,1767195035617,-2080.66,0.00013698,2]
[400203160,1767195035626,-2080.66,0.00013698,2]
[400203161,1767195035636,-2080.66,0.00013698,2]
[400203162,1767195035647,-2080.66,0.00013698,2]
[400203163,1767195035657,-2080.66,0.00013698,2]
[400203164,1767195035667,-2080.66,0.00013698,2]
[400203165,1767195035677,-2080.66,0.00013698,2]
[400203166,1767195035687,-2080.66,0.00013698,2]
[400203167,1767195035697,-2080.66,0.00013698,2]
[400203168,1767195035707,-2080.66,0.00013698,2]
[400203169,1767195035717,-2080.66,0.00013698,2]
[400203170,1767195035726,-2080.66,0.00013698,2]
[400203171,1767195035736,-2080.66,0.00013698,2]
[400203172,1767195035745,-2080.66,0.00013698,2]
[400203173,1767195035756,-2080.66,0.00013698,2]
[400203174,1767195035766,-2080.66,0.00013698,2]
[400203175,1767195035775,-2080.83006602,0.00013698,2]
[400203176,1767195035784,-1000.0,0.00013699,2]
[400203177,1767195035793,-215593.3375346,0.00013699,2]
[400203178,1767195035803,-500.0,0.00013699,2]
[400203179,1767195035812,-500.0,0.00013699,2]
[400203180,1767195035821,-500.0,0.00013699,2]
[400203181,1767195035830,-500.0,0.00013699,2]
[400203182,1767195035840,-500.0,0.00013699,2]
[400203183,1767195035849,-500.0,0.00013699,2]
[400203184,1767195035859,-500.0,0.00013699,2]
[400203185,1767195035868,-500.0,0.00013699,2]
[400203186,1767195035877,-500.0,0.00013699,2]
[400203187,1767195035887,-500.0,0.00013699,2]
[400203188,1767195035896,-346.46150426,0.00013699,2]
[400203189,1767195035905,-500.0,0.00013699,2]
[400203190,1767195035914,-500.0,0.00013699,2]
[400203191,1767195035924,-500.0,0.00013699,2]
[400203192,1767195035933,-500.0,0.00013699,2]
[400203193,1767195035942,-500.0,0.00013699,2]
[400203194,1767195035955,-500.0,0.00013699,2]
[400203195,1767195035965,-500.0,0.00013699,2]
[400203196,1767195035975,-500.0,0.00013699,2]
[400203197,1767195035984,-500.0,0.00013699,2]
[400203198,1767195035995,-500.0,0.00013699,2]
[400203199,1767195036004,-159.68059141,0.00013699,2]
[400203200,1767195036013,-500.0,0.00013699,2]
[400203201,1767195036024,-500.0,0.00013699,2]
[400203202,1767195036033,-157.55448324,0.00013699,2]
[400203203,1767195036043,-500.0,0.00013699,2]
[400203204,1767195036053,-500.0,0.00013699,2]
[400203205,1767195036062,-500.0,0.00013699,2]
[400203206,1767195036072,-587.30545204,0.00013699,2]
[400203207,1767195036082,-500.0,0.00013699,2]
[400203208,1767195036091,-260.28159851,0.00013699,2]
[400203209,1767195036100,-158.18512633,0.00013699,2]
[400203210,1767195036109,-260.2481779,0.00013699,2]
[400203211,1767195036119,-500.0,0.00013699,2]
[400203212,1767195036127,-500.0,0.00013699,2]
[400203213,1767195036137,-298.53483888,0.00013699,2]
[400203214,1767195036146,-416.75445415,0.00013699,2]
[400203215,1767195036156,-500.0,0.00013699,2]
[400203216,1767195036165,-160.15137988,0.00013699,2]
[400203217,1767195036175,-500.0,0.00013699,2]
[400203218,1767195036184,-500.0,0.00013699,2]
[400203219,1767195036194,-500.0,0.00013699,2]
[400203220,1767195036204,-500.0,0.00013699,2]
[400203221,1767195036214,-242.87306652,0.00013699,2]
[400203222,1767195036223,-500.0,0.00013699,2]
[400203223,1767195036233,-500.0,0.00013699,2]
[400203224,1767195036242,-500.0,0.00013699,2]
[400203225,1767195036252,-165.03764715,0.00013699,2]
[400203226,1767195036261,-500.0,0.00013699,2]
[400203227,1767195036271,-500.0,0.00013699,2]
[400203228,1767195036280,-237.8458189,0.00013699,2]
[400203229,1767195036290,-158.38886572,0.00013699,2]
[400203230,1767195036299,-303.93264249,0.00013699,2]
[400203231,1767195036309,-500.0,0.00013699,2]
[400203232,1767195036319,-188.42009972,0.00013699,2]
[400203233,1767195036328,-500.0,0.00013699,2]
[400203234,1767195036338,-158.38534191,0.00013699,2]
[400203235,1767195036347,-500.0,0.00013699,2]
[400203236,1767195036357,-500.0,0.00013699,2]
[400203237,1767195036366,-500.0,0.00013699,2]
[400203238,1767195036376,-500.0,0.00013699,2]
[400203239,1767195036385,-500.0,0.00013699,2]
[400203240,1767195036395,-500.0,0.00013699,2]
[400203241,1767195036404,-500.0,0.00013699,2]
[400203242,1767195036414,-500.0,0.00013699,2]
[400203243,1767195036424,-150.0,0.00013699,2]
[400203244,1767195036434,-500.0,0.00013699,2]
[400203245,1767195036444,-500.0,0.00013699,2]
[400203246,1767195036454,-158.38532202,0.00013699,2]
[400203247,1767195036463,-500.0,0.00013699,2]
[400203248,1767195036473,-158.18512013,0.00013699,2]
[400203249,1767195036483,-160.3309554,0.00013699,2]
[400203250,1767195036493,-500.0,0.00013699,2]
[400203251,1767195036502,-500.0,0.00013699,2]
[400203252,1767195036512,-157.18386067,0.00013699,2]
[400203253,1767195036522,-500.0,0.00013699,2]
[400203254,1767195036532,-500.0,0.00013699,2]
[400203255,1767195036542,-500.0,0.00013699,2]
[400203256,1767195036553,-500.0,0.00013699,2]
[400203257,1767195036563,-500.0,0.00013699,2]
[400203258,1767195036572,-500.0,0.00013699,2]
[400203259,1767195036582,-500.0,0.00013699,2]
[400203260,1767195036591,-500.0,0.00013699,2]
[400203261,1767195036601,-500.0,0.00013699,2]
[400203262,1767195036611,-500.0,0.00013699,2]
[400203263,1767195036620,-500.57498562,0.00013699,2]
[400203264,1767195036630,-158.3853059,0.00013699,2]
[400203265,1767195036640,-500.0,0.00013699,2]
[400203266,1767195036649,-500.0,0.00013699,2]
[400203267,1767195036659,-309.28633635,0.00013699,2]
[400203268,1767195036669,-307.59957655,0.00013699,2]
[400203269,1767195036679,-500.0,0.00013699,2]
[400203270,1767195036689,-163.65866633,0.00013699,2]
[400203271,1767195036699,-500.0,0.00013699,2]
[400203272,1767195036708,-500.0,0.00013699,2]
[400203273,1767195036718,-500.0,0.00013699,2]
[400203274,1767195036728,-500.0,0.00013699,2]
[400203275,1767195036737,-500.0,0.00013699,2]
[400203276,1767195036747,-158.10807846,0.00013699,2]
[400203277,1767195036756,-500.0,0.00013699,2]
[400203278,1767195036766,-500.0,0.00013699,2]
[400203279,1767195036775,-500.0,0.00013699,2]
[400203280,1767195036785,-500.0,0.00013699,2]
[400203281,1767195036794,-500.0,0.00013699,2]
[400203282,1767195036804,-500.0,0.00013699,2]
[400203283,1767195036814,-500.0,0.00013699,2]
[400203284,1767195036824,-500.0,0.00013699,2]
[400203285,1767195036833,-1000.0,0.00013821,2]
[400203286,1767195036842,-1000.0,0.00013821,2]
[400203287,1767195036852,-1000.0,0.00013821,2]
[400203288,1767195036861,-1000.0,0.00013821,2]
[400203289,1767195036871,-1000.0,0.00013821,2]
[400203290,1767195036880,-1000.0,0.00013821,2]
[400203291,1767195036890,-1000.0,0.00013821,2]
[400203292,1767195036898,-1000.0,0.00013821,2]
[400203293,1767195036907,-1006.37696416,0.00013821,2]
[400203294,1767195036918,-1000.0,0.00013821,2]
[400203295,1767195036927,-1000.0,0.00013821,2]
[400203296,1767195036937,-1000.0,0.00013821,2]
[400203297,1767195036947,-1000.0,0.00013821,2]
[400203298,1767195036959,-1000.0,0.00013821,2]
[400203299,1767195036969,-752.44576455,0.00013821,2]
[400203300,1767195036979,-1000.0,0.00013821,2]
[400203301,1767195036989,-1000.0,0.00013821,2]
[400203302,1767195037001,-1000.0,0.00013821,2]
[400203303,1767195037010,-1000.0,0.00013821,2]
[400203304,1767195037020,-196.20087533,0.00013821,2]
[400203305,1767195037031,-349.6789102,0.00013821,2]
[400203306,1767195037040,-1000.0,0.00013821,2]
[400203307,1767195037050,-1000.0,0.00013821,2]
[400203308,1767195037059,-1000.0,0.00013821,2]
[400203309,1767195037068,-1000.0,0.00013821,2]
[400203310,1767195037078,-1000.0,0.00013821,2]
[400203311,1767195037087,-1000.0,0.00013821,2]
[400203312,1767195037097,-1000.0,0.00013821,2]
[400203313,1767195037107,-1000.0,0.00013821,2]
[400203314,1767195037116,-1000.0,0.00013821,2]
[400203315,1767195037126,-1000.0,0.00013821,2]
[400203316,1767195037135,-186.16786472,0.00013821,2]
[400203317,1767195037145,-1000.0,0.00013821,2]
[400203318,1767195037154,-1000.0,0.00013821,2]
[400203319,1767195037164,-190.31177109,0.00013821,2]
[400203320,1767195037173,-1000.0,0.00013821,2]
[400203321,1767195037183,-1000.0,0.00013821,2]
[400203322,1767195037192,-1000.0,0.00013821,2]
[400203323,1767195037202,-250.0,0.00014022,2]
[400203324,1767195037212,-823.0,0.00014142,2]
[400203325,1767195037334,-5884.83135054,0.00014147,2]
[400203326,1767195037344,-2262.0,0.00014168,2]
[400203327,1767195037354,-223.21428916,0.00014175,2]
[400203328,1767195037364,-600.0,0.00014221,2]
[400203329,1767195037373,-200.0,0.00014246,2]
[400203330,1767195037384,-433.15519118,0.00014247,2]
[400203331,1767195037394,-251.84601956,0.00014247,2]
[400203332,1767195037404,-1000.0,0.00014247,2]
[400203333,1767195037413,-1000.0,0.00014247,2]
[400203334,1767195037423,-1000.0,0.00014247,2]
[400203335,1767195037432,-1000.0,0.00014247,2]
[400203336,1767195037442,-1000.0,0.00014247,2]
[400203337,1767195037452,-1000.0,0.00014247,2]
[400203338,1767195037462,-1000.0,0.00014247,2]
[400203339,1767195037472,-500.48099046,0.00014247,2]
[400203340,1767195037481,-1000.0,0.00014247,2]
[400203341,1767195037491,-1000.0,0.00014247,2]
[400203342,1767195037501,-1000.0,0.00014247,2]
[400203343,1767195037511,-1000.0,0.00014247,2]
[400203344,1767195037520,-688.75934812,0.00014247,2]
[400203345,1767195037530,-1000.0,0.00014247,2]
[400203346,1767195037539,-1000.0,0.00014247,2]
[400203347,1767195037549,-1000.0,0.00014247,2]
[400203348,1767195037559,-1000.0,0.00014247,2]
[400203349,1767195037568,-1000.0,0.00014247,2]
[400203350,1767195037578,-911.90264951,0.00014247,2]
[400203351,1767195037587,-1000.0,0.00014247,2]
[400203352,1767195037598,-609.17214565,0.00014247,2]
[400203353,1767195037608,-1000.0,0.00014247,2]
[400203354,1767195037618,-1000.0,0.00014247,2]
[400203355,1767195037627,-1002.43895782,0.00014247,2]
[400203356,1767195037637,-1000.0,0.00014247,2]
[400203357,1767195037647,-1000.0,0.00014247,2]
[400203358,1767195037656,-1000.0,0.00014247,2]
[400203359,1767195037666,-1024.36073826,0.00014247,2]
[400203360,1767195037675,-1005.9697834,0.00014247,2]
[400203361,1767195037685,-1000.0,0.00014247,2]
[400203362,1767195037694,-1000.0,0.00014247,2]
[400203363,1767195037704,-1000.0,0.00014247,2]
[400203364,1767195037713,-1000.0,0.00014247,2]
[400203365,1767195037723,-1000.0,0.00014247,2]
[400203366,1767195037732,-1000.0,0.00014247,2]
[400203367,1767195037742,-1000.0,0.00014247,2]
[400203368,1767195037752,-1000.0,0.00014247,2]
[400203369,1767195037761,-1000.0,0.00014247,2]
[400203370,1767195037770,-495.63847364,0.00014247,2]
[400203371,1767195037781,-1000.0,0.00014247,2]
[400203372,1767195037795,-1000.0,0.00014247,2]
[400203373,1767195037804,-500.4478313,0.00014247,2]
[400203374,1767195037814,-1000.0,0.00014247,2]
[400203375,1767195037823,-1000.0,0.00014247,2]
[400203376,1767195037833,-1000.0,0.00014247,2]
[400203377,1767195037843,-297.63479171,0.00014247,2]
[400203378,1767195037852,-150.58559665,0.00014247,2]
[400203379,1767195037861,-1000.0,0.00014247,2]
[400203380,1767195037871,-1000.0,0.00014247,2]
[400203381,1767195037880,-1000.0,0.00014247,2]
[400203382,1767195037890,-1000.0,0.00014247,2]
[400203383,1767195037899,-1000.0,0.00014247,2]
[400203384,1767195037909,-1000.75482131,0.00014247,2]
[400203385,1767195037918,-1000.0,0.00014247,2]
[400203386,1767195037928,-1000.0,0.00014247,2]
[400203387,1767195037937,-1000.0,0.00014247,2]
[400203388,1767195037947,-412.690879,0.00014247,2]
[400203389,1767195037960,-1000.0,0.00014247,2]
[400203390,1767195037970,-267.6781502,0.00014247,2]
[400203391,1767195037980,-1000.0,0.00014247,2]
[400203392,1767195037990,-454.65827101,0.00014247,2]
[400203393,1767195038002,-1000.0,0.00014247,2]
[400203394,1767195038012,-1000.0,0.00014247,2]
[400203395,1767195038022,-1000.0,0.00014247,2]
[400203397,1767195038033,-1000.0,0.00014247,2]
[400203399,1767195038043,-1000.0,0.00014247,2]
[400203400,1767195038053,-1000.0,0.00014247,2]
[400203402,1767195038063,-295.43360933,0.00014247,2]
[400203404,1767195038072,-866.45646788,0.00014247,2]
[400203406,1767195038082,-1000.0,0.00014247,2]
[400203408,1767195038091,-1000.0,0.00014247,2]
[400203409,1767195038101,-1000.0,0.00014247,2]
[400203411,1767195038110,-1000.0,0.00014247,2]
[400203413,1767195038119,-1000.0,0.00014247,2]
[400203414,1767195038129,-1000.0,0.00014247,2]
[400203415,1767195038139,-1000.0,0.00014247,2]
[400203416,1767195038149,-1000.0,0.00014247,2]
[400203417,1767195038159,-1000.0,0.00014247,2]
[400203418,1767195038169,-3292.0,0.00014269,2]
[400203419,1767195038179,-200.0,0.00014367,2]
[400203420,1767195038188,-465.35115233,0.00014368,2]
[400203422,1767195038198,-739.12450639,0.00014368,2]
[400203423,1767195038208,-1500.0,0.00014368,2]
[400203424,1767195038217,-1500.0,0.00014368,2]
[400203425,1767195038227,-1000.0,0.00014368,2]
[400203426,1767195038237,-1500.0,0.00014368,2]
[400203427,1767195038247,-1613.45090759,0.00014368,2]
[400203428,1767195038257,-1500.0,0.00014368,2]
[400203429,1767195038267,-1500.0,0.00014368,2]
[400203430,1767195038277,-1500.0,0.00014368,2]
[400203431,1767195038287,-1500.0,0.00014368,2]
[400203432,1767195038297,-1500.0,0.00014368,2]
[400203433,1767195038308,-282.65977069,0.00014368,2]
[400203434,1767195038318,-1185.55855892,0.00014368,2]
[400203435,1767195038328,-1500.0,0.00014368,2]
[400203436,1767195038338,-1500.0,0.00014368,2]
[400203437,1767195038348,-1500.0,0.00014368,2]
[400203438,1767195038358,-220.45191793,0.00014368,2]
[400203439,1767195038368,-1500.0,0.00014368,2]
[400203440,1767195038378,-1506.86265729,0.00014368,2]
[400203441,1767195038388,-1500.0,0.00014368,2]
[400203442,1767195038397,-250.79014339,0.00014368,2]
[400203443,1767195038407,-1500.0,0.00014368,2]
[400203444,1767195038420,-1500.0,0.00014368,2]
[400203445,1767195038432,-1500.0,0.00014368,2]
[400203446,1767195038442,-1500.0,0.00014368,2]
[400203447,1767195038451,-1144.50771368,0.00014368,2]
[400203449,1767195038461,-1500.0,0.00014368,2]
[400203451,1767195038471,-1500.0,0.00014368,2]
[400203453,1767195038480,-1500.0,0.00014368,2]
[400203454,1767195038491,-1500.0,0.00014368,2]
[400203455,1767195038502,-924.40432946,0.00014368,2]
[400203456,1767195038515,-622.73,0.00014453,2]
[400203457,1767195038532,-1396.15120835,0.000145,2]
[400203458,1767195038544,-530.55637888,0.00014745,2]
[400203459,1767195038554,-600.0,0.00014768,2]
[400203460,1767195038566,-200.0,0.00014794,2]
[400203461,1767195038577,-1500.0,0.00014795,2]
[400203462,1767195038587,-1011.86637987,0.00014795,2]
[400203463,1767195038597,-1500.0,0.00014795,2]
[400203464,1767195038608,-1500.0,0.00014795,2]
[400203465,1767195038618,-1500.0,0.00014795,2]
[400203466,1767195038627,-1078.13053233,0.00014795,2]
[400203467,1767195038637,-1371.80562161,0.00014795,2]
[400203468,1767195038647,-1500.0,0.00014795,2]
[400203469,1767195038657,-1500.0,0.00014795,2]
[400203470,1767195038667,-1500.0,0.00014795,2]
[400203471,1767195038677,-1500.0,0.00014795,2]
[400203472,1767195038687,-568.53710429,0.00014795,2]
[400203473,1767195038697,-614.96936602,0.00014795,2]
[400203474,1767195038707,-1500.0,0.00014795,2]
[400203475,1767195038717,-1500.0,0.00014795,2]
[400203476,1767195038727,-1500.0,0.00014795,2]
[400203477,1767195038736,-1500.0,0.00014795,2]
[400203478,1767195038747,-1500.0,0.00014795,2]
[400203479,1767195038756,-1500.0,0.00014795,2]
[400203480,1767195038766,-1500.0,0.00014795,2]
[400203481,1767195038776,-1500.0,0.00014795,2]
[400203482,1767195038786,-1500.0,0.00014795,2]
[400203483,1767195038796,-1500.0,0.00014795,2]
[400203484,1767195038809,-1288.21762562,0.00014795,2]
[400203485,1767195038818,-1500.0,0.00014795,2]
[400203486,1767195038828,-1500.0,0.00014795,2]
[400203487,1767195038838,-690.10820632,0.00014795,2]
[400203488,1767195038848,-1500.0,0.00014795,2]
[400203489,1767195038858,-1500.0,0.00014795,2]
[400203490,1767195038868,-1500.0,0.00014795,2]
[400203491,1767195038878,-1500.0,0.00014795,2]
[400203492,1767195038888,-1500.0,0.00014795,2]
[400203493,1767195038898,-1633.65989049,0.00014795,2]
[400203494,1767195038909,-1500.0,0.00014795,2]
[400203495,1767195038919,-1500.0,0.00014795,2]
[400203496,1767195038930,-1157.67215419,0.00014795,2]
[400203497,1767195038940,-368.38939569,0.00014795,2]
[400203498,1767195038952,-1425.73894344,0.00014795,2]
[400203499,1767195038962,-1500.0,0.00014795,2]
[400203500,1767195038973,-1500.0,0.00014795,2]
[400203501,1767195038983,-1500.0,0.00014795,2]
[400203502,1767195038994,-1500.0,0.00014795,2]
[400203503,1767195039003,-1105.24677987,0.00014795,2]
[400203504,1767195039013,-1500.0,0.00014795,2]
[400203505,1767195039023,-1500.0,0.00014795,2]
[400203506,1767195039034,-1500.0,0.00014795,2]
[400203507,1767195039044,-1500.0,0.00014795,2]
[400203508,1767195039054,-1500.0,0.00014795,2]
[400203509,1767195039065,-1142.5109954,0.00014795,2]
[400203510,1767195039075,-1500.0,0.00014795,2]
[400203511,1767195039086,-1500.0,0.00014795,2]
[400203512,1767195039096,-1500.0,0.00014795,2]
[400203513,1767195039106,-1500.0,0.00014795,2]
[400203514,1767195039116,-1500.0,0.00014795,2]
[400203515,1767195039126,-1500.0,0.00014795,2]
[400203516,1767195039136,-1500.0,0.00014795,2]
[400203517,1767195039147,-1016.82099752,0.00014795,2]
[400203518,1767195039157,-1500.0,0.00014795,2]
[400203519,1767195039168,-1500.0,0.00014795,2]
[400203520,1767195039177,-1500.0,0.00014795,2]
[400203521,1767195039187,-206.34098665,0.00014861,2]
[400203522,1767195039197,-100000.0,0.00014882,2]
[400203523,1767195039207,-594.0663961,0.000149,2]
[400203524,1767195039218,-2000.0,0.00014916,2]
[400203525,1767195039228,-2000.0,0.00014916,2]
[400203526,1767195039238,-318.87701711,0.00014916,2]
[400203527,1767195039247,-1500.0,0.00014916,2]
[400203528,1767195039257,-2000.0,0.00014916,2]
[400203529,1767195039268,-160.96609247,0.00014916,2]
[400203530,1767195039278,-2000.0,0.00014916,2]
[400203531,1767195039292,-2000.0,0.00014916,2]
[400203532,1767195039302,-2000.0,0.00014916,2]
[400203533,1767195039313,-2000.0,0.00014916,2]
[400203534,1767195039323,-2000.0,0.00014916,2]
[400203535,1767195039333,-2000.0,0.00014916,2]
[400203536,1767195039343,-2000.0,0.00014916,2]
[400203537,1767195039353,-1503.81920107,0.00014916,2]
[400203538,1767195039363,-2000.0,0.00014916,2]
[400203539,1767195039372,-1500.0,0.00014916,2]
[400203540,1767195039382,-1500.0,0.00014916,2]
[400203541,1767195039392,-2000.0,0.00014916,2]
[400203542,1767195039402,-1500.0,0.00014916,2]
[400203543,1767195039413,-2000.0,0.00014916,2]
[400203544,1767195039422,-1017.37357247,0.00015,2]
[400203545,1767195039432,-37729.56632351,0.00015,2]
[400203546,1767195039442,-11532.96606781,0.00015,2]
[400203547,1767195039451,-150.77099208,0.00015,2]
[400203548,1767195039462,-803.60344278,0.00015068,2]
[400203549,1767195039472,-4475.0,0.00015134,2]
[400203550,1767195039482,-627.0,0.00015301,2]
[400203551,1767195039491,-1364.0,0.00015301,2]
[400203552,1767195039501,-2156.0,0.00015301,2]
[400203553,1767195039511,-298.0,0.00015301,2]
[400203554,1767195039521,-297.588,0.00015301,2]
[400203555,1767195039532,-416.0,0.00015301,2]
[400203556,1767195039542,-416.0,0.00015301,2]
[400203557,1767195039552,-500.0,0.00015342,2]
[400203558,1767195039562,-464.65372712,0.00015342,2]
[400203559,1767195039572,-1500.0,0.00015342,2]
[400203560,1767195039581,-1500.0,0.00015342,2]
[400203561,1767195039591,-182.49603851,0.00015342,2]
[400203562,1767195039601,-1500.0,0.00015342,2]
[400203563,1767195039610,-500.0,0.00015342,2]
[400203564,1767195039620,-509.61748521,0.00015342,2]
[400203565,1767195039630,-500.0,0.00015342,2]
[400203566,1767195039641,-2000.0,0.00015342,2]
[400203567,1767195039651,-415.94669576,0.00015342,2]
[400203568,1767195039662,-1136.69571136,0.00015342,2]
[400203569,1767195039672,-1500.0,0.00015342,2]
[400203570,1767195039682,-2000.0,0.00015342,2]
[400203571,1767195039691,-1402.01463508,0.00015342,2]
[400203572,1767195039701,-1082.96523397,0.00015342,2]
[400203573,1767195039711,-2124.39387403,0.00015342,2]
[400203574,1767195039721,-1493.29475081,0.00015342,2]
[400203575,1767195039731,-1886.3706875,0.00015342,2]